fUST/lending_fUST_20250129
["ID","MTS","AMOUNT","RATE_DAILY","PERIOD"]
[350723055,1738084243475,-570.21,0.00016712,2]
[350723056,1738084243486,-500.0,0.00016712,2]
[350723057,1738084243496,-151.0,0.000168,2]
[350723058,1738084243506,-500.0,0.0001683,2]
[350723059,1738084243516,-420.0,0.00016831,2]
[350723060,1738084243526,-1000.0,0.00016842,2]
[350723061,1738084243536,-500.0,0.00016849,2]
[350723062,1738084243546,-500.0,0.00016849,2]
[350723063,1738084243556,-151.0,0.00016849,2]
[350723064,1738084243566,-151.0,0.00016849,2]
[350723066,1738084243575,-500.0,0.00016849,2]
[350723068,1738084243585,-500.0,0.00016849,2]
[350723069,1738084243595,-596.88,0.00016849,2]
[350723070,1738084243605,-603.09811123,0.00016849,2]
[350723071,1738084243616,-500.0,0.00016849,2]
[350723072,1738084243627,-573.53349249,0.00016849,2]
[350723073,1738084243637,-500.0,0.00016849,2]
[350723074,1738084243647,-151.0,0.00016849,2]
[350723075,1738084243657,-151.0,0.00016849,2]
[350723076,1738084243668,-500.0,0.00016849,2]
[350723077,1738084243678,-500.0,0.00016849,2]
[350723078,1738084243689,-500.0,0.00016849,2]
[350723079,1738084243699,-500.0,0.00016849,2]
[350723080,1738084243709,-500.0,0.00016849,2]
[350723081,1738084243719,-500.0,0.00016849,2]
[350723082,1738084243729,-500.0,0.00016849,2]
[350723083,1738084243739,-500.0,0.00016849,2]
[350723084,1738084243749,-151.0,0.00016849,2]
[350723085,1738084243759,-500.0,0.00016849,2]
[350723086,1738084243769,-851.97,0.00016849,2]
[350723087,1738084243780,-500.0,0.00016849,2]
[350723088,1738084243792,-500.0,0.00016849,2]
[350723089,1738084243802,-500.0,0.00016849,2]
[350723090,1738084243812,-553.9,0.00016849,2]
[350723091,1738084243823,-863.756561,0.00016849,2]
[350723092,1738084243833,-863.756563,0.00016849,2]
[350723093,1738084243843,-151.0,0.00016849,2]
[350723094,1738084244011,-647.35,0.00016849,2]
[350723095,1738084244021,-2483.61,0.00016849,2]
[350723096,1738084244032,-591.09,0.00016849,2]
[350723097,1738084244042,-517.78677878,0.00016849,2]
[350723098,1738084244051,-266.054822,0.00016849,2]
[350723099,1738084244061,-500.0,0.00016849,2]
[350723100,1738084244071,-500.0,0.00016849,2]
[350723101,1738084244081,-154.826094,0.00016849,2]
[350723102,1738084244091,-154.826096,0.00016849,2]
[350723103,1738084244101,-4170.5,0.00016849,2]
[350723104,1738084244110,-541.74,0.00016849,2]
[350723105,1738084244121,-690.706677,0.00016849,2]
[350723106,1738084244131,-690.706673,0.00016849,2]
[350723107,1738084244141,-151.0,0.00016849,2]
[350723108,1738084244152,-5969.27,0.00016849,2]
[350723109,1738084244161,-500.0,0.00016849,2]
[350723110,1738084244171,-666.23,0.00016849,2]
[350723111,1738084244181,-1903.46,0.00016849,2]
[350723112,1738084244191,-500.0,0.00016849,2]
[350723113,1738084244201,-1463.78,0.00016849,2]
[350723114,1738084244211,-500.0,0.00016849,2]
[350723115,1738084244221,-1278.03,0.00016849,2]
[350723116,1738084244232,-500.0,0.00016849,2]
[350723117,1738084244244,-723.37,0.00016849,2]
[350723118,1738084244254,-500.0,0.00016849,2]
[350723119,1738084244266,-500.0,0.00016849,2]
[350723120,1738084244276,-500.0,0.00016849,2]
[350723121,1738084244287,-500.0,0.00016849,2]
[350723122,1738084244297,-17853.09,0.00016849,2]
[350723123,1738084244306,-523.54,0.00016849,2]
[350723124,1738084244316,-500.0,0.00016849,2]
[350723125,1738084244325,-806.99,0.00016849,2]
[350723126,1738084244336,-1650.48,0.00016849,2]
[350723127,1738084244346,-1683.34,0.00016849,2]
[350723128,1738084244356,-3284.18,0.00016849,2]
[350723129,1738084244367,-6928.27,0.00016849,2]
[350723130,1738084244376,-500.0,0.00016849,2]
[350723131,1738084244386,-1000.0,0.00016849,7]
[350723132,1738084244396,-725.68,0.00016849,2]
[350723133,1738084244405,-500.0,0.00016849,2]
[350723134,1738084244416,-249.91,0.00016849,2]
[350723135,1738084244426,-597.25,0.00016849,2]
[350723136,1738084244436,-500.0,0.00016849,2]
[350723137,1738084244446,-500.0,0.00016849,2]
[350723138,1738084244456,-1401.98,0.00016849,2]
[350723139,1738084244467,-633.53,0.00016849,2]
[350723140,1738084244478,-570.21,0.00016849,2]
[350723141,1738084244489,-572.01,0.00016849,2]
[350723142,1738084244499,-500.0,0.0001685,2]
[350723143,1738084244509,-501.19233727,0.00016875,2]
[350723144,1738084244520,-320.15,0.000169,2]
[350723145,1738084244530,-151.0,0.000169,2]
[350723146,1738084244541,-154.2803338,0.00016959,2]
[350723147,1738084244551,-565.46,0.00016986,2]
[350723148,1738084244562,-262.48080705,0.00016986,2]
[350723149,1738084244572,-151.0,0.00016986,2]
[350723150,1738084244582,-151.0,0.00016986,2]
[350723151,1738084244592,-311.83,0.00016986,2]
[350723152,1738084244603,-500.0,0.00016986,2]
[350723153,1738084244613,-596.88,0.00016986,2]
[350723154,1738084244623,-500.0,0.00016986,2]
[350723155,1738084244634,-500.0,0.00016986,2]
[350723156,1738084244644,-500.0,0.00016986,2]
[350723157,1738084244653,-500.0,0.00016986,2]
[350723158,1738084244663,-500.0,0.00016986,2]
[350723159,1738084244673,-534.75477925,0.00016986,2]
[350723160,1738084244683,-255.15848127,0.00016986,2]
[350723161,1738084244692,-569.35227322,0.00016986,2]
[350723162,1738084244702,-500.0,0.00016986,2]
[350723163,1738084244711,-500.0,0.00016986,2]
[350723164,1738084244720,-500.0,0.00016986,2]
[350723165,1738084244730,-851.97,0.00016986,2]
[350723166,1738084244740,-500.0,0.00016986,2]
[350723167,1738084244749,-500.0,0.00016986,2]
[350723168,1738084244759,-553.9,0.00016986,2]
[350723169,1738084244769,-647.35,0.00016986,2]
[350723170,1738084244778,-2483.61,0.00016986,2]
[350723171,1738084244788,-591.09,0.00016986,2]
[350723172,1738084244798,-500.0,0.00016986,2]
[350723173,1738084244808,-296.41712949,0.00016986,2]
[350723174,1738084244818,-4170.5,0.00016986,2]
[350723175,1738084244827,-541.74,0.00016986,2]
[350723176,1738084244837,-5969.27,0.00016986,2]
[350723177,1738084244847,-500.0,0.00016986,2]
[350723178,1738084244857,-666.23,0.00016986,2]
[350723179,1738084244867,-1903.46,0.00016986,2]
[350723180,1738084244878,-295.37082511,0.00016986,2]
[350723181,1738084244887,-1463.78,0.00016986,2]
[350723182,1738084244897,-500.0,0.00016986,2]
[350723183,1738084244906,-1278.03,0.00016986,2]
[350723184,1738084244916,-500.0,0.00016986,2]
[350723185,1738084244926,-723.37,0.00016986,2]
[350723186,1738084244935,-500.0,0.00016986,2]
[350723187,1738084244945,-500.0,0.00016986,2]
[350723188,1738084244955,-500.0,0.00016986,2]
[350723189,1738084244965,-500.0,0.00016986,2]
[350723190,1738084244975,-17853.09,0.00016986,2]
[350723191,1738084244985,-523.54,0.00016986,2]
[350723192,1738084244995,-500.0,0.00016986,2]
[350723193,1738084245005,-806.99,0.00016986,2]
[350723194,1738084245015,-1650.48,0.00016986,2]
[350723195,1738084245025,-1683.34,0.00016986,2]
[350723196,1738084245035,-3284.18,0.00016986,2]
[350723197,1738084245045,-6928.27,0.00016986,2]
[350723198,1738084245054,-500.0,0.00016986,2]
[350723199,1738084245064,-349.63,0.00016986,7]
[350723200,1738084245073,-725.68,0.00016986,2]
[350723201,1738084245083,-500.0,0.00016986,2]
[350723202,1738084245092,-597.25,0.00016986,2]
[350723203,1738084245102,-500.0,0.00016986,2]
[350723204,1738084245111,-500.0,0.00016986,2]
[350723205,1738084245123,-1401.98,0.00016986,2]
[350723206,1738084245133,-570.21,0.00016986,2]
[350723207,1738084245142,-706.7832656,0.00016986,2]
[350723208,1738084245153,-5438.63,0.00017,2]
[350723209,1738084245162,-5893.19,0.00017,2]
[350723210,1738084245173,-524.75377911,0.00017021,2]
[350723211,1738084245183,-1000.0,0.00017021,2]
[350723212,1738084245192,-428.50945288,0.0001703,2]
[350723213,1738084245202,-151.0,0.000171,2]
[350723214,1738084245212,-500.0,0.00017123,2]
[350723215,1738084245222,-596.88,0.00017123,2]
[350723216,1738084245232,-500.0,0.00017123,2]
[350723217,1738084245245,-500.0,0.00017123,2]
[350723218,1738084245255,-500.0,0.00017123,2]
[350723219,1738084245266,-355.39782437,0.00017123,2]
[350723220,1738084245276,-500.0,0.00017123,2]
[350723221,1738084245288,-500.0,0.00017123,2]
[350723222,1738084245298,-500.0,0.00017123,2]
[350723223,1738084245307,-500.0,0.00017123,2]
[350723224,1738084245319,-851.97,0.00017123,2]
[350723225,1738084245329,-500.0,0.00017123,2]
[350723226,1738084245339,-500.0,0.00017123,2]
[350723227,1738084245349,-553.9,0.00017123,2]
[350723228,1738084245361,-647.35,0.00017123,2]
[350723229,1738084245373,-2483.61,0.00017123,2]
[350723230,1738084245383,-591.09,0.00017123,2]
[350723231,1738084245393,-500.0,0.00017123,2]
[350723232,1738084245402,-541.74,0.00017123,2]
[350723234,1738084245412,-4170.5,0.00017123,2]
[350723236,1738084245423,-5969.27,0.00017123,2]
[350723237,1738084245433,-500.0,0.00017123,2]
[350723238,1738084245443,-666.23,0.00017123,2]
[350723239,1738084245452,-1903.46,0.00017123,2]
[350723241,1738084245462,-1463.78,0.00017123,2]
[350723242,1738084245473,-500.0,0.00017123,2]
[350723243,1738084245483,-1278.03,0.00017123,2]
[350723244,1738084245492,-500.0,0.00017123,2]
[350723245,1738084245502,-723.37,0.00017123,2]
[350723246,1738084245512,-500.0,0.00017123,2]
[350723247,1738084245521,-500.0,0.00017123,2]
[350723248,1738084245531,-500.0,0.00017123,2]
[350723249,1738084245543,-500.0,0.00017123,2]
[350723250,1738084245553,-17853.09,0.00017123,2]
[350723251,1738084245564,-523.54,0.00017123,2]
[350723252,1738084245573,-500.0,0.00017123,2]
[350723253,1738084245583,-806.99,0.00017123,2]
[350723254,1738084245592,-1650.48,0.00017123,2]
[350723255,1738084245601,-1683.34,0.00017123,2]
[350723256,1738084245611,-3284.18,0.00017123,2]
[350723257,1738084245622,-70.77528336,0.00017123,2]
[350723262,1738084246158,-138.9406287,0.00017123,2]
[350723263,1738084246171,-6718.55408794,0.00017123,2]
[350723264,1738084246181,-500.0,0.00017123,2]
[350723265,1738084246191,-725.68,0.00017123,2]
[350723266,1738084246201,-308.95705579,0.00017123,2]
[350723267,1738084246210,-502.94018375,0.00017123,2]
[350723268,1738084246223,-94.30981625,0.00017123,2]
[350723269,1738084246233,-500.0,0.00017123,2]
[350723270,1738084246246,-500.0,0.00017123,2]
[350723271,1738084246256,-1401.98,0.00017123,2]
[350723272,1738084246265,-570.21,0.00017123,2]
[350723273,1738084246275,-151.0,0.000172,2]
[350723274,1738084246286,-717.80829403,0.00017246,2]
[350723275,1738084246295,-596.88,0.0001726,2]
[350723276,1738084246304,-500.0,0.0001726,2]
[350723277,1738084246314,-500.0,0.0001726,2]
[350723278,1738084246323,-500.0,0.0001726,2]
[350723279,1738084246334,-500.0,0.0001726,2]
[350723280,1738084246345,-500.0,0.0001726,2]
[350723281,1738084246355,-500.0,0.0001726,2]
[350723282,1738084246367,-500.0,0.0001726,2]
[350723283,1738084246377,-851.97,0.0001726,2]
[350723284,1738084246386,-500.0,0.0001726,2]
[350723285,1738084246396,-553.9,0.0001726,2]
[350723286,1738084246406,-647.35,0.0001726,2]
[350723287,1738084246416,-2483.61,0.0001726,2]
[350723288,1738084246425,-591.09,0.0001726,2]
[350723289,1738084246435,-500.0,0.0001726,2]
[350723290,1738084246444,-541.74,0.0001726,2]
[350723291,1738084246454,-4170.5,0.0001726,2]
[350723292,1738084246464,-5969.27,0.0001726,2]
[350723293,1738084246473,-500.0,0.0001726,2]
[350723294,1738084246483,-666.23,0.0001726,2]
[350723295,1738084246493,-1903.46,0.0001726,2]
[350723296,1738084246503,-1463.78,0.0001726,2]
[350723297,1738084246512,-500.0,0.0001726,2]
[350723298,1738084246522,-1278.03,0.0001726,2]
[350723299,1738084246531,-500.0,0.0001726,2]
[350723300,1738084246541,-723.37,0.0001726,2]
[350723301,1738084246551,-487.2,0.0001726,2]
[350723302,1738084246561,-500.0,0.0001726,2]
[350723303,1738084246570,-531.6531608,0.0001726,2]
[350723304,1738084246581,-500.0,0.0001726,2]
[350723305,1738084246591,-17853.09,0.0001726,2]
[350723306,1738084246600,-523.54,0.0001726,2]
[350723307,1738084246611,-500.0,0.0001726,2]
[350723308,1738084246621,-806.99,0.0001726,2]
[350723309,1738084246631,-1650.48,0.0001726,2]
[350723310,1738084246641,-1683.34,0.0001726,2]
[350723311,1738084246651,-3284.18,0.0001726,2]
[350723312,1738084246661,-6928.27,0.0001726,2]
[350723313,1738084246670,-500.0,0.0001726,2]
[350723314,1738084246680,-725.68,0.0001726,2]
[350723315,1738084246691,-597.25,0.0001726,2]
[350723316,1738084246700,-500.0,0.0001726,2]
[350723317,1738084246710,-500.0,0.0001726,2]
[350723318,1738084246720,-1401.98,0.0001726,2]
[350723319,1738084246729,-570.21,0.0001726,2]
[350723320,1738084246739,-151.0,0.000173,2]
[350723321,1738084246750,-425.5377504,0.00017338,2]
[350723322,1738084246759,-596.88,0.00017397,2]
[350723323,1738084246770,-430.59382647,0.00017397,2]
[350723324,1738084246780,-500.0,0.00017397,2]
[350723325,1738084246789,-500.0,0.00017397,2]
[350723326,1738084246799,-500.0,0.00017397,2]
[350723327,1738084246808,-500.0,0.00017397,2]
[350723328,1738084246818,-383.82,0.00017397,2]
[350723329,1738084246827,-500.0,0.00017397,2]
[350723330,1738084246837,-851.97,0.00017397,2]
[350723331,1738084246846,-500.0,0.00017397,2]
[350723332,1738084246855,-553.9,0.00017397,2]
[350723333,1738084246865,-647.35,0.00017397,2]
[350723334,1738084246875,-2483.61,0.00017397,2]
[350723335,1738084246884,-591.09,0.00017397,2]
[350723336,1738084246894,-500.0,0.00017397,2]
[350723337,1738084246903,-541.74,0.00017397,2]
[350723338,1738084246913,-4170.5,0.00017397,2]
[350723339,1738084246922,-5969.27,0.00017397,2]
[350723340,1738084246932,-500.0,0.00017397,2]
[350723341,1738084246942,-666.23,0.00017397,2]
[350723342,1738084246952,-1903.46,0.00017397,2]
[350723343,1738084246963,-1463.78,0.00017397,2]
[350723344,1738084246973,-500.0,0.00017397,2]
[350723345,1738084246983,-1278.03,0.00017397,2]
[350723346,1738084246993,-500.0,0.00017397,2]
[350723347,1738084247003,-723.37,0.00017397,2]
[350723348,1738084247013,-500.0,0.00017397,2]
[350723349,1738084247024,-500.0,0.00017397,2]
[350723350,1738084247034,-17853.09,0.00017397,2]
[350723351,1738084247044,-523.54,0.00017397,2]
[350723352,1738084247053,-500.0,0.00017397,2]
[350723353,1738084247062,-806.99,0.00017397,2]
[350723354,1738084247072,-1650.48,0.00017397,2]
[350723355,1738084247081,-1683.34,0.00017397,2]
[350723356,1738084247092,-3284.18,0.00017397,2]
[350723357,1738084247103,-6928.27,0.00017397,2]
[350723358,1738084247114,-500.0,0.00017397,2]
[350723359,1738084247125,-725.68,0.00017397,2]
[350723360,1738084247135,-597.25,0.00017397,2]
[350723361,1738084247144,-500.0,0.00017397,2]
[350723362,1738084247154,-500.0,0.00017397,2]
[350723363,1738084247163,-1401.98,0.00017397,2]
[350723364,1738084247173,-570.21,0.00017397,2]
[350723365,1738084247183,-1000.0,0.00017398,2]
[350723366,1738084247192,-151.0,0.000174,2]
[350723367,1738084247202,-22474.32206296,0.000175,2]
[350723368,1738084247212,-151.0,0.000175,2]
[350723369,1738084247222,-151.0,0.000175,2]
[350723370,1738084247232,-151.0,0.000175,2]
[350723371,1738084247244,-596.88,0.00017534,2]
[350723372,1738084247255,-287.2006999,0.00017534,2]
[350723373,1738084247268,-500.0,0.00017534,2]
[350723374,1738084247278,-500.0,0.00017534,2]
[350723375,1738084247289,-500.0,0.00017534,2]
[350723376,1738084247299,-500.0,0.00017534,2]
[350723377,1738084247311,-851.97,0.00017534,2]
[350723378,1738084247321,-500.0,0.00017534,2]
[350723379,1738084247332,-553.9,0.00017534,2]
[350723380,1738084247342,-647.35,0.00017534,2]
[350723381,1738084247351,-2483.61,0.00017534,2]
[350723382,1738084247361,-591.09,0.00017534,2]
[350723383,1738084247371,-500.0,0.00017534,2]
[350723384,1738084247382,-541.74,0.00017534,2]
[350723385,1738084247392,-4170.5,0.00017534,2]
[350723386,1738084247402,-5969.27,0.00017534,2]
[350723387,1738084247411,-500.0,0.00017534,2]
[350723388,1738084247421,-666.23,0.00017534,2]
[350723389,1738084247431,-1903.46,0.00017534,2]
[350723390,1738084247441,-1112.72607202,0.00017534,2]
[350723391,1738084247455,-351.05392798,0.00017534,2]
[350723392,1738084247465,-500.0,0.00017534,2]
[350723393,1738084247474,-1278.03,0.00017534,2]
[350723394,1738084247483,-500.0,0.00017534,2]
[350723395,1738084247493,-723.37,0.00017534,2]
[350723396,1738084247503,-500.0,0.00017534,2]
[350723397,1738084247514,-500.0,0.00017534,2]
[350723398,1738084247524,-5014.44520562,0.00017534,2]
[350723399,1738084247536,-12838.64479438,0.00017534,2]
[350723400,1738084247546,-523.54,0.00017534,2]
[350723401,1738084247556,-500.0,0.00017534,2]
[350723402,1738084247566,-806.99,0.00017534,2]
[350723403,1738084247576,-1650.48,0.00017534,2]
[350723404,1738084247587,-1683.34,0.00017534,2]
[350723405,1738084247598,-1589.88628092,0.00017534,2]
[350723406,1738084247611,-1694.29371908,0.00017534,2]
[350723407,1738084247621,-1191.13532509,0.00017534,2]
[350723408,1738084247937,-5737.13467491,0.00017534,2]
[350723409,1738084247947,-500.0,0.00017534,2]
[350723410,1738084247957,-725.68,0.00017534,2]
[350723411,1738084247967,-597.25,0.00017534,2]
[350723412,1738084247978,-500.0,0.00017534,2]
[350723413,1738084247987,-500.0,0.00017534,2]
[350723414,1738084247997,-1401.98,0.00017534,2]
[350723415,1738084248007,-570.21,0.00017534,2]
[350723416,1738084248018,-500.0,0.00017564,2]
[350723417,1738084248142,-151.0,0.000176,2]
[350723418,1738084248154,-300.0,0.000176,7]
[350723419,1738084248165,-2043.0,0.00017646,2]
[350723420,1738084248176,-537.0,0.00017646,2]
[350723421,1738084248185,-2306.0,0.00017646,2]
[350723422,1738084248195,-596.88,0.00017671,2]
[350723423,1738084248205,-500.0,0.00017671,2]
[350723424,1738084248215,-500.0,0.00017671,2]
[350723425,1738084248225,-500.0,0.00017671,2]
[350723426,1738084248234,-115.97418016,0.00017671,2]
[350723427,1738084248251,-384.02581984,0.00017671,2]
[350723428,1738084248261,-100.06497773,0.00017671,2]
[350723429,1738084248274,-751.90502227,0.00017671,2]
[350723430,1738084248284,-500.0,0.00017671,2]
[350723431,1738084248295,-553.9,0.00017671,2]
[350723432,1738084248305,-647.35,0.00017671,2]
[350723433,1738084248314,-2483.61,0.00017671,2]
[350723434,1738084248326,-591.09,0.00017671,2]
[350723435,1738084248336,-225.41719863,0.00017671,2]
[350723436,1738084248347,-541.74,0.00017671,2]
[350723437,1738084248358,-4170.5,0.00017671,2]
[350723438,1738084248368,-5969.27,0.00017671,2]
[350723439,1738084248380,-500.0,0.00017671,2]
[350723440,1738084248391,-666.23,0.00017671,2]
[350723441,1738084248401,-1903.46,0.00017671,2]
[350723442,1738084248412,-1463.78,0.00017671,2]
[350723443,1738084248422,-500.0,0.00017671,2]
[350723444,1738084248432,-1278.03,0.00017671,2]
[350723445,1738084248443,-500.0,0.00017671,2]
[350723446,1738084248454,-723.37,0.00017671,2]
[350723447,1738084248465,-500.0,0.00017671,2]
[350723448,1738084248475,-500.0,0.00017671,2]
[350723449,1738084248485,-17853.09,0.00017671,2]
[350723450,1738084248495,-523.54,0.00017671,2]
[350723451,1738084248505,-500.0,0.00017671,2]
[350723452,1738084248516,-806.99,0.00017671,2]
[350723453,1738084248526,-1650.48,0.00017671,2]
[350723454,1738084248536,-1683.34,0.00017671,2]
[350723455,1738084248547,-3284.18,0.00017671,2]
[350723456,1738084248558,-6928.27,0.00017671,2]
[350723457,1738084248569,-579.19151211,0.00017671,2]
[350723458,1738084248579,-725.68,0.00017671,2]
[350723459,1738084248590,-597.25,0.00017671,2]
[350723460,1738084248600,-500.0,0.00017671,2]
[350723461,1738084248610,-500.0,0.00017671,2]
[350723462,1738084248621,-1401.98,0.00017671,2]
[350723463,1738084248632,-570.21,0.00017671,2]
[350723464,1738084248642,-85244.25060063,0.000177,2]
[350723465,1738084248652,-151.0,0.000177,2]
[350723466,1738084248663,-150.298728,0.000177,2]
[350723467,1738084248673,-151.0,0.000178,2]
[350723468,1738084248683,-596.88,0.00017808,2]
[350723469,1738084248692,-500.0,0.00017808,2]
[350723470,1738084248702,-500.0,0.00017808,2]
[350723471,1738084248712,-500.0,0.00017808,2]
[350723472,1738084248722,-500.0,0.00017808,2]
[350723473,1738084248733,-851.97,0.00017808,2]
[350723474,1738084248743,-500.0,0.00017808,2]
[350723475,1738084248752,-553.9,0.00017808,2]
[350723476,1738084248762,-647.35,0.00017808,2]
[350723477,1738084248774,-591.09,0.00017808,2]
[350723478,1738084248784,-2483.61,0.00017808,2]
[350723479,1738084248795,-541.74,0.00017808,2]
[350723480,1738084248805,-4170.5,0.00017808,2]
[350723481,1738084248816,-5969.27,0.00017808,2]
[350723482,1738084248826,-535.1307218,0.00017808,2]
[350723483,1738084248836,-666.23,0.00017808,2]
[350723484,1738084248846,-1903.46,0.00017808,2]
[350723485,1738084248856,-1463.78,0.00017808,2]
[350723486,1738084248867,-500.0,0.00017808,2]
[350723487,1738084248878,-1278.03,0.00017808,2]
[350723488,1738084248888,-51.78866494,0.00017808,2]
[350723572,1738084663894,287.017591,0.00013973,2]
[350723610,1738085226083,-300.0,0.00015445,2]
[350723611,1738085226106,-1223.72959343,0.00015446,2]
[350723613,1738085319490,238.18046257,0.0001,7]
[350723658,1738085432372,-300.0,0.00015445,2]
[350723660,1738085432383,-5418.80946145,0.00015446,2]
[350723708,1738085438216,-18257.46094512,0.00015446,2]
[350723709,1738085438227,-914.2333609,0.00015885,2]
[350723710,1738085438238,-2311.13189863,0.00016,2]
[350723711,1738085438248,-581.84106436,0.00016337,2]
[350723712,1738085438258,-500.0,0.00016437,2]
[350723713,1738085438268,-500.0,0.00016437,2]
[350723714,1738085438278,-500.0,0.00016437,2]
[350723716,1738085438288,-500.0,0.00016437,2]
[350723717,1738085438298,-500.0,0.00016437,2]
[350723718,1738085438307,-405.7,0.00016437,2]
[350723719,1738085438317,-500.0,0.00016437,2]
[350723720,1738085438327,-500.0,0.00016437,2]
[350723721,1738085438522,-400.0,0.00016437,2]
[350723722,1738085438533,-500.0,0.00016437,2]
[350723723,1738085438544,-500.0,0.00016437,2]
[350723724,1738085438554,-500.0,0.00016437,2]
[350723725,1738085438564,-500.0,0.00016437,2]
[350723726,1738085438575,-641.01959457,0.00016437,2]
[350723727,1738085438585,-500.0,0.00016437,2]
[350723728,1738085438595,-500.0,0.00016437,2]
[350723729,1738085438609,-500.0,0.00016437,2]
[350723730,1738085438619,-500.0,0.00016437,2]
[350723731,1738085438629,-500.0,0.00016437,2]
[350723732,1738085438639,-500.0,0.00016437,2]
[350723733,1738085438649,-499.99999999,0.00016437,2]
[350723734,1738085438662,-500.0,0.00016438,2]
[350723735,1738085438672,-500.0,0.00016438,2]
[350723736,1738085438682,-500.0,0.00016438,2]
[350723737,1738085438693,-500.0,0.00016438,2]
[350723738,1738085438707,-500.0,0.00016438,2]
[350723739,1738085438719,-500.0,0.00016438,2]
[350723740,1738085438731,-510.36657055,0.00016438,2]
[350723741,1738085438742,-501.30221651,0.00016438,2]
[350723742,1738085438752,-500.0,0.00016438,2]
[350723743,1738085438761,-500.0,0.00016438,2]
[350723744,1738085438771,-502.50280276,0.00016438,2]
[350723745,1738085438781,-501.36331429,0.00016438,2]
[350723746,1738085438791,-500.0,0.00016438,2]
[350723747,1738085438800,-590.32627347,0.00016438,2]
[350723748,1738085438810,-501.60868557,0.00016438,2]
[350723749,1738085438820,-500.0,0.00016438,2]
[350723750,1738085438830,-500.76076375,0.00016438,2]
[350723751,1738085438839,-500.0,0.00016438,2]
[350723752,1738085438849,-500.0,0.00016438,2]
[350723753,1738085438858,-500.0,0.00016438,2]
[350723754,1738085438867,-500.0,0.00016438,2]
[350723755,1738085438877,-500.0,0.00016438,2]
[350723756,1738085438887,-508.56595639,0.00016438,2]
[350723757,1738085438898,-500.0,0.00016438,2]
[350723758,1738085438908,-500.0,0.00016438,2]
[350723759,1738085438918,-500.0,0.00016438,2]
[350723760,1738085438929,-500.0,0.00016438,2]
[350723761,1738085438938,-193.18223624,0.00016438,2]
[350723762,1738085438948,-500.0,0.00016438,2]
[350723763,1738085438958,-500.0,0.00016438,2]
[350723764,1738085438967,-500.0,0.00016438,2]
[350723765,1738085438977,-500.0,0.00016438,2]
[350723766,1738085438987,-500.0,0.00016438,2]
[350723767,1738085438997,-500.0,0.00016438,2]
[350723768,1738085439007,-500.0,0.00016438,2]
[350723769,1738085439016,-500.0,0.00016438,2]
[350723770,1738085439026,-509.53609126,0.00016438,2]
[350723771,1738085439035,-500.0,0.00016438,2]
[350723772,1738085439045,-391.55804599,0.00016438,2]
[350723776,1738085440229,-108.44195401,0.00016438,2]
[350723777,1738085440240,-506.36663702,0.00016438,2]
[350723778,1738085440253,-500.0,0.00016438,2]
[350723779,1738085440263,-194.691808,0.00016438,2]
[350723803,1738085501378,219.73632267,0.00013973,2]